bitfinex-derivatives/quotes_BTCF0:USTF0_20251118
["timestamp","ask_amount","ask_price","bid_price","bid_amount"]
[1763469256328,0.0445,91441.0,91440.0,0.04592803]
[1763469257122,0.04466404,91445.0,91444.0,0.04373]
[1763469262529,0.02186404,91445.0,91444.0,0.04373]
[1763469262725,0.00016404,91445.0,91444.0,0.04373]
[1763469263029,0.02194404,91445.0,91444.0,0.04373]
[1763469263216,0.04311404,91445.0,91444.0,0.04373]
[1763469265624,0.00016404,91445.0,91444.0,0.04373]
[1763469266828,0.04311404,91445.0,91444.0,0.04373]
[1763469278639,0.0443,91441.0,91440.0,0.00219803]
[1763469279341,0.0443,91441.0,91440.0,0.02330803]
[1763469279530,0.0443,91441.0,91440.0,0.04451803]
[1763469282137,0.0443,91441.0,91440.0,0.00219803]
[1763469282337,0.0443,91439.0,91438.0,0.26392]
[1763469283136,0.0443,91439.0,91438.0,0.28503]
[1763469283439,0.0443,91439.0,91438.0,0.30624]
[1763469286946,0.02332404,91445.0,91444.0,0.04232]
[1763469287148,0.04446404,91445.0,91444.0,0.04232]
[1763469287547,0.02332404,91445.0,91444.0,0.04232]
[1763469287843,0.04446404,91445.0,91444.0,0.04232]
[1763469289643,0.00016404,91445.0,91444.0,0.04232]
[1763469291545,0.08344763,91459.0,91458.0,0.04232]
[1763469291853,0.0443,91459.0,91458.0,0.04232]
[1763469295745,0.0443,91465.0,91464.0,0.04232]
[1763469298648,0.04538,91461.0,91460.0,0.04763803]
[1763469300559,0.04538,91451.0,91450.0,0.04544]
[1763469300745,0.04538,91451.0,91450.0,0.00219803]
[1763469301053,0.04538,91450.0,91437.0,0.03938613]
[1763469301362,0.04538,91435.0,91434.0,0.02224]
[1763469301666,0.04538,91435.0,91434.0,0.30932]
[1763469303957,0.02252,91435.0,91434.0,0.30932]
[1763469304152,0.00016404,91444.0,91443.0,0.04544]
[1763469304849,0.02268404,91444.0,91443.0,0.04544]
[1763469305053,0.04554404,91444.0,91443.0,0.04544]
[1763469305350,0.05889,91441.0,91440.0,0.02443803]
[1763469305551,0.05889,91441.0,91440.0,0.04763803]
[1763469307560,0.04538,91441.0,91440.0,0.04763803]
[1763469307758,0.00016404,91444.0,91443.0,0.04544]
[1763469307956,0.01351,91483.0,91455.0,0.04544]
[1763469307957,0.03914763,91456.0,91455.0,0.04544]
[1763469308161,0.01351,91476.0,91458.0,0.04544]
[1763469308162,0.02252,91459.0,91458.0,0.04544]
[1763469308366,0.04538,91459.0,91458.0,0.04544]
[1763469310656,0.04538,91459.0,91455.0,0.26388]
[1763469310657,0.04538,91456.0,91455.0,0.28612]
[1763469311059,0.04538,91456.0,91455.0,0.26388]
[1763469312053,0.05889,91456.0,91455.0,0.30932]
[1763469317764,0.04538,91460.0,91459.0,0.04544]
[1763469321666,0.08452763,91460.0,91459.0,0.04544]
[1763469322560,0.04538,91460.0,91459.0,0.04544]
[1763469323865,0.06170972,91460.0,91459.0,0.04544]
[1763469324362,0.08401972,91460.0,91459.0,0.04544]
[1763469326668,0.04483,91460.0,91459.0,0.04544]
[1763469330966,0.08401972,91460.0,91459.0,0.04544]
[1763469331371,0.04483,91460.0,91459.0,0.04544]
[1763469334370,0.001,91462.0,91461.0,0.04329]
[1763469334573,0.04357,91462.0,91461.0,0.04329]
[1763469335068,0.04357,91462.0,91461.0,0.02105]
[1763469335278,0.04257,91461.0,91460.0,0.00219803]
[1763469335783,0.04965,91450.0,91449.0,0.00016404]
[1763469336675,0.04965,91450.0,91449.0,0.04345404]
[1763469349581,0.04965,91450.0,91449.0,0.00016404]
[1763469350081,0.08179768,91456.0,91455.0,0.04329]
[1763469350272,0.02146,91456.0,91455.0,0.04329]
[1763469350577,0.03922768,91461.0,91460.0,0.05586]
[1763469350772,0.03922768,91471.0,91461.0,0.04329]
[1763469351077,0.03922768,91472.0,91461.0,0.07282528]
[1763469351281,0.03922768,91473.0,91461.0,0.04329]
[1763469351477,0.03922768,91474.0,91461.0,0.04329]
[1763469351981,0.05301768,91475.0,91461.0,0.04329]
[1763469353173,0.01379,91475.0,91461.0,0.04329]
[1763469354282,0.01379,91475.0,91461.0,0.07280139]
[1763469357283,0.01379,91475.0,91461.0,0.04329]
[1763469359288,0.02216,91462.0,91461.0,0.04329]
[1763469359684,0.0438,91462.0,91461.0,0.04329]
[1763469360105,0.0428,91461.0,91460.0,0.00219803]
[1763469360396,0.0428,91454.0,91453.0,0.25574]
[1763469360587,0.0428,91454.0,91453.0,0.27762]
[1763469362308,0.0428,91454.0,91453.0,0.25574]
[1763469363999,0.01285,91455.0,91450.0,0.00219803]
[1763469364000,0.0428,91451.0,91450.0,0.00219803]
[1763469364199,0.0428,91451.0,91449.0,0.00016404]
[1763469364406,0.0428,91450.0,91449.0,0.00016404]
[1763469365597,0.0428,91450.0,91449.0,0.04434404]
[1763469366106,0.0428,91450.0,91449.0,0.00016404]
[1763469366800,0.0428,91450.0,91428.0,0.01257]
[1763469366801,0.0428,91450.0,91434.0,0.02949929]
[1763469367000,0.0428,91432.0,91430.0,0.02949929]
[1763469367200,0.01285,91434.0,91422.0,0.02949929]
[1763469367201,0.0428,91424.0,91422.0,0.02949929]
[1763469367398,0.0428,91421.0,91420.0,0.05399732]
[1763469367599,0.0428,91421.0,91420.0,0.07587732]
[1763469367800,0.0428,91421.0,91420.0,0.05399732]
[1763469368002,0.0428,91421.0,91420.0,0.00219803]
[1763469368700,0.0428,91421.0,91420.0,0.02449803]
[1763469368900,0.0428,91421.0,91420.0,0.00219803]
[1763469370410,0.0428,91412.0,91411.0,0.04434404]
[1763469371109,0.0428,91421.0,91411.0,0.00016404]
[1763469371304,0.17460982,91421.0,91420.0,0.04418]
[1763469371511,0.0428,91421.0,91420.0,0.04637803]
[1763469375606,0.0428,91428.0,91427.0,0.04418]
[1763469376413,0.05565,91428.0,91427.0,0.04418]
[1763469377609,0.0428,91428.0,91427.0,0.04418]
[1763469378010,0.0428,91428.0,91418.0,0.13180982]
[1763469378011,0.00016404,91430.0,91422.0,0.01257]
[1763469378208,0.00016404,91430.0,91429.0,0.04418]
[1763469378611,0.04296404,91430.0,91429.0,0.04418]
[1763469385517,0.00016404,91430.0,91429.0,0.04418]
[1763469385710,4.04e-06,91430.0,91429.0,0.04418]
[1763469385911,0.17486982,91450.0,91449.0,0.04515]
[1763469386121,0.04306,91450.0,91449.0,0.04515]
[1763469389716,0.04406,91450.0,91449.0,0.04515]
[1763469390121,0.001,91450.0,91449.0,0.04515]
[1763469393926,0.02424,91462.0,91461.0,0.04229]
[1763469394324,0.001,91462.0,91461.0,0.04229]
[1763469395017,0.17622982,91480.0,91479.0,0.04229]
[1763469395227,0.04442,91480.0,91479.0,0.04229]
[1763469402825,0.04469327,91486.0,91485.0,0.04229]
[1763469403026,0.04469327,91486.0,91485.0,0.02122]
[1763469403230,0.04469327,91486.0,91485.0,0.04229]
[1763469406327,0.04442,91481.0,91480.0,0.04448803]
[1763469410030,0.04442,91481.0,91480.0,0.00219803]
[1763469410232,0.04442,91481.0,91480.0,0.02341803]
[1763469410731,0.04442,91481.0,91480.0,0.04448803]
[1763469413727,0.04442,91481.0,91480.0,0.02341803]
[1763469413933,0.04442,91481.0,91480.0,0.04448803]
[1763469416337,0.06274095,91486.0,91485.0,0.04229]
[1763469416634,0.00027327,91486.0,91485.0,0.05485]
[1763469417327,0.02351327,91486.0,91485.0,0.05485]
[1763469417837,0.00027327,91486.0,91485.0,0.05485]
[1763469418823,0.08281768,91501.0,91500.0,0.044]
[1763469419029,0.03922768,91503.0,91502.0,0.044]
[1763469419230,0.03922768,91509.0,91507.0,0.044]
[1763469419430,0.03922768,91509.0,91500.0,0.01475803]
[1763469419431,0.03922768,91509.0,91508.0,0.044]
[1763469419730,0.06147768,91510.0,91509.0,0.044]
[1763469419932,0.08281768,91510.0,91509.0,0.044]
[1763469420333,0.04359,91510.0,91509.0,0.044]
[1763469420634,0.06141898,91510.0,91509.0,0.044]
[1763469420822,0.03916898,91511.0,91510.0,0.04619803]
[1763469421029,0.04359,91511.0,91510.0,0.04619803]
[1763469421630,0.02225,91511.0,91510.0,0.04619803]
[1763469421831,0.04359,91516.0,91515.0,0.044]
[1763469422032,0.04359,91522.0,91512.0,0.01259]
[1763469422338,0.04359,91522.0,91521.0,0.044]
[1763469423237,0.02225,91533.0,91525.0,0.01256]
[1763469423437,0.02225,91533.0,91532.0,0.044]
[1763469423438,0.04359,91533.0,91532.0,0.044]
[1763469423643,0.09612898,91542.0,91541.0,0.044]
[1763469423845,0.04359,91542.0,91541.0,0.044]
[1763469424740,0.02225,91542.0,91541.0,0.044]
[1763469424942,0.06956831,91558.0,91554.0,0.02284]
[1763469424943,0.08268936,91555.0,91554.0,0.02284]
[1763469425145,0.04359,91551.0,91550.0,0.00219803]
[1763469425634,0.02225,91535.0,91534.0,0.044]
[1763469425835,0.02225,91535.0,91534.0,0.30768]
[1763469426037,0.04359,91535.0,91534.0,0.30768]
[1763469427145,0.04359,91533.0,91532.0,0.00016386]
[1763469431448,0.04359,91533.0,91532.0,0.04416386]
[1763469431648,0.04359,91533.0,91532.0,0.00016386]
[1763469435149,0.04359,91533.0,91532.0,0.04416386]
[1763469437557,0.04359,91539.0,91538.0,0.044]
[1763469438260,0.04359,91539.0,91532.0,0.00016386]
[1763469438261,0.04359,91533.0,91532.0,0.00016386]
[1763469438461,0.04359,91533.0,91532.0,0.04416386]
[1763469445258,0.04359,91533.0,91532.0,0.00016386]
[1763469445458,0.04359,91533.0,91532.0,0.04437386]
[1763469445973,0.04359,91533.0,91532.0,0.02196386]
[1763469446272,0.04359,91533.0,91532.0,0.00016386]
[1763469450856,0.07810099,91540.0,91508.0,0.02949929]
[1763469451054,0.10525647,91542.0,91510.0,0.00219803]
[1763469451055,0.05555,91512.0,91510.0,0.00219803]
[1763469451270,0.04343,91511.0,91510.0,0.04511803]
[1763469452155,0.02123,91511.0,91510.0,0.04511803]
[1763469452373,0.04343,91511.0,91510.0,0.04511803]
[1763469452862,0.04343,91518.0,91517.0,0.04292]
[1763469454367,0.00016325,91520.0,91519.0,0.04292]
[1763469454662,0.04359325,91520.0,91519.0,0.04292]
[1763469455861,0.04359325,91520.0,91519.0,0.0216]
[1763469456066,0.04343,91507.0,91506.0,0.04292]
[1763469456258,0.02123,91518.0,91517.0,0.04292]
[1763469456462,0.00016325,91520.0,91519.0,0.04292]
[1763469457470,0.00016325,91520.0,91513.0,0.02949047]
[1763469457471,0.04343,91514.0,91513.0,0.0216]
[1763469457664,0.04343,91514.0,91513.0,0.04292]
[1763469458770,0.05648,91511.0,91510.0,0.04511803]
[1763469459368,0.05648,91518.0,91517.0,0.04292]
[1763469459572,0.04343,91518.0,91517.0,0.04292]
[1763469461773,0.01305,91518.0,91504.0,0.05548]
[1763469461966,0.05648,91518.0,91517.0,0.04292]
[1763469462366,0.04343,91505.0,91504.0,0.04292]
[1763469463073,0.08267042,91517.0,91516.0,0.04292]
[1763469464975,0.08266068,91517.0,91516.0,0.04292]
[1763469465678,0.04343,91517.0,91516.0,0.04292]
[1763469467774,0.02123,91517.0,91516.0,0.04292]
[1763469467980,0.00016325,91520.0,91519.0,0.04292]
[1763469469480,0.02139325,91520.0,91519.0,0.04292]
[1763469469674,0.08282393,91520.0,91519.0,0.04292]
[1763469469978,0.03939393,91520.0,91519.0,0.04292]
[1763469470185,0.04359325,91520.0,91519.0,0.04292]
[1763469470480,0.00016325,91520.0,91519.0,0.04292]
[1763469470870,0.03923068,91530.0,91524.0,0.02132]
[1763469471071,0.08266068,91531.0,91530.0,0.04292]
[1763469471275,0.08266068,91531.0,91530.0,0.04511803]
[1763469471581,0.04343,91531.0,91530.0,0.04511803]
[1763469473675,0.08266068,91537.0,91536.0,0.04292]
[1763469473879,0.04343,91537.0,91536.0,0.04292]
[1763469475881,0.02123,91537.0,91536.0,0.04292]
[1763469476478,0.04343,91537.0,91536.0,0.0216]
[1763469476680,0.04343,91537.0,91536.0,0.04292]
[1763469480694,0.02123,91537.0,91536.0,0.04292]
[1763469480994,0.04285,91537.0,91536.0,0.04292]
[1763469481784,0.03923068,91538.0,91537.0,0.04386]
[1763469481988,0.01305,91553.0,91538.0,0.04386]
[1763469481989,0.03923068,91539.0,91538.0,0.04386]
[1763469482196,0.03923068,91543.0,91542.0,0.04386]
[1763469482385,0.08365068,91545.0,91544.0,0.04386]
[1763469482886,0.04442,91545.0,91544.0,0.04386]
[1763469486092,0.03923068,91549.0,91548.0,0.05642]
[1763469486288,0.03923068,91550.0,91549.0,0.04386]
[1763469486789,0.05884296,91555.0,91554.0,0.04386]
[1763469486790,0.08365068,91555.0,91554.0,0.04386]
[1763469487195,0.04442,91555.0,91554.0,0.04386]
[1763469490395,0.04442,91551.0,91550.0,0.04605803]
[1763469491894,0.04442,91551.0,91550.0,0.00219803]
[1763469492203,0.04442,91551.0,91550.0,0.04605803]
[1763469494302,0.04442,91551.0,91550.0,0.00219803]
[1763469494499,0.01378,91554.0,91535.0,0.04402386]
[1763469494500,0.0582,91536.0,91535.0,0.04402386]
[1763469494995,0.0582,91536.0,91535.0,0.00016386]
[1763469496200,0.09743068,91536.0,91535.0,0.00016386]
[1763469496504,0.09743068,91536.0,91524.0,0.26352]
[1763469496505,0.0582,91525.0,91524.0,0.26352]
[1763469497105,0.0582,91525.0,91524.0,0.28531]
[1763469497313,0.0582,91525.0,91524.0,0.26352]
[1763469500406,0.0582,91525.0,91524.0,0.28531]
[1763469500609,0.0582,91525.0,91524.0,0.30634]
[1763469501609,0.01378,91532.0,91531.0,0.04274]
[1763469501610,0.05845,91532.0,91531.0,0.04274]
[1763469502011,0.04467,91532.0,91531.0,0.04274]
[1763469502206,0.00016386,91534.0,91533.0,0.04274]
[1763469502514,0.04483386,91534.0,91533.0,0.04274]
[1763469507714,0.04418,91531.0,91530.0,0.02461803]
[1763469507902,0.04418,91531.0,91530.0,0.00219803]
[1763469508306,0.04418,91531.0,91530.0,0.02461803]
[1763469508710,0.04418,91531.0,91530.0,0.04611803]
[1763469510019,0.02239,91531.0,91530.0,0.04611803]
[1763469510217,0.02255386,91534.0,91533.0,0.04392]
[1763469510417,0.04434386,91534.0,91533.0,0.04392]
[1763469512620,0.00016386,91534.0,91533.0,0.04392]
[1763469513119,0.00016386,91534.0,91533.0,0.30744]
[1763469514320,0.09630441,91546.0,91545.0,0.04392]
[1763469515522,0.09630441,91546.0,91540.0,0.00219803]
[1763469515523,0.04418,91541.0,91540.0,0.04611803]
[1763469520418,0.01373,91542.0,91540.0,0.04611803]
[1763469520419,0.03919441,91547.0,91546.0,0.04392]
[1763469521330,0.03919441,91547.0,91542.0,0.01262]
[1763469521515,0.08337441,91550.0,91549.0,0.04392]
[1763469521717,0.04418,91550.0,91549.0,0.04392]
[1763469523222,0.08337441,91550.0,91549.0,0.04392]
[1763469524331,0.04418,91550.0,91549.0,0.04392]
[1763469525626,0.08346774,91550.0,91549.0,0.04392]
[1763469526128,0.04418,91550.0,91549.0,0.04392]
[1763469526517,0.04418,91538.0,91537.0,0.04392]
[1763469527518,0.02239,91538.0,91537.0,0.04392]
[1763469528325,0.05791,91548.0,91547.0,0.04392]
[1763469528518,0.04418,91548.0,91547.0,0.04392]
[1763469533222,0.05791,91548.0,91547.0,0.04392]
[1763469538536,0.04418,91548.0,91547.0,0.04392]
[1763469540133,0.08223561,91555.0,91554.0,0.04526]
[1763469540334,0.04295,91555.0,91554.0,0.04526]
[1763469540933,0.0213,91555.0,91554.0,0.04526]
[1763469541138,0.00428561,91564.0,91563.0,0.03092]
[1763469541336,0.00428561,91564.0,91554.0,0.01262]
[1763469541337,0.05683,91578.0,91577.0,0.03092]
[1763469541536,0.05683,91578.0,91577.0,0.29436]
[1763469542736,0.0213,91578.0,91577.0,0.29436]
[1763469542940,0.05683,91584.0,91583.0,0.03092]
[1763469545930,0.04295,91581.0,91580.0,0.01765803]
[1763469546137,0.04295,91581.0,91580.0,0.03311803]
[1763469548040,0.04295,91581.0,91580.0,0.00219803]
[1763469549135,0.04295,91581.0,91580.0,0.03311803]
[1763469552236,0.04295,91581.0,91580.0,0.00219803]
[1763469552839,0.04295,91581.0,91574.0,0.00016386]
[1763469552840,0.04295,91575.0,91574.0,0.00016386]
[1763469553140,0.04295,91570.0,91569.0,0.18088]
[1763469553440,0.04295,91570.0,91569.0,0.14588]
[1763469554140,0.04295,91570.0,91560.0,0.00016386]
[1763469554331,0.0213,91574.0,91573.0,0.04526]
[1763469554537,0.04295,91574.0,91573.0,0.04526]
[1763469554735,0.04295,91574.0,91570.0,0.00219803]
[1763469554736,0.04295,91571.0,91570.0,0.00219803]
[1763469555332,0.04295,91571.0,91570.0,0.04745803]
[1763469556239,0.04295,91576.0,91570.0,0.00219803]
[1763469556440,0.00016386,91579.0,91578.0,0.04526]
[1763469556642,0.04311386,91579.0,91578.0,0.04526]
[1763469557045,0.04311386,91579.0,91578.0,0.02204]
[1763469557240,0.04311386,91579.0,91566.0,0.13447727]
[1763469557241,0.04295,91567.0,91566.0,0.04526]
[1763469557640,0.0213,91567.0,91566.0,0.04526]
[1763469558040,0.04295,91576.0,91575.0,0.04526]
[1763469558240,0.05683,91576.0,91575.0,0.04526]
[1763469558853,0.0213,91576.0,91575.0,0.04526]
[1763469559246,0.04295,91576.0,91575.0,0.04526]
[1763469559451,0.05683,91576.0,91575.0,0.04526]
[1763469559646,0.04295,91571.0,91570.0,0.04745803]
[1763469561046,0.04295,91571.0,91570.0,0.31081803]
[1763469563339,0.04295,91571.0,91570.0,0.26555803]
[1763469564046,0.04295,91571.0,91570.0,0.31033803]
[1763469564445,0.04295,91571.0,91570.0,0.26555803]
[1763469564945,0.01388,91576.0,91560.0,0.04494386]
[1763469564946,0.04282,91561.0,91560.0,0.04494386]
[1763469565252,0.04282,91561.0,91560.0,0.31050189]
[1763469567040,0.04452386,91579.0,91578.0,0.04485]
[1763469567941,0.02160386,91579.0,91578.0,0.04485]
[1763469568440,0.00016386,91579.0,91578.0,0.04485]
[1763469568850,0.02160386,91579.0,91578.0,0.04485]
[1763469569258,0.04452386,91579.0,91578.0,0.02157]
[1763469569460,0.04452386,91579.0,91578.0,0.04485]
[1763469569955,0.04436,91575.0,91574.0,0.04485]
[1763469570954,0.04436,91575.0,91574.0,0.02157]
[1763469571253,0.04436,91575.0,91571.0,0.02936136]
[1763469571456,0.01387,91576.0,91564.0,0.02936136]
[1763469571457,0.04436,91565.0,91564.0,0.02936136]
[1763469571755,0.04436,91565.0,91560.0,0.03954999]
[1763469571756,0.04436,91561.0,91560.0,0.00236189]
[1763469572049,0.04436,91561.0,91560.0,0.04721189]
[1763469572445,0.01387,91568.0,91560.0,0.04721189]
[1763469572646,0.04436,91568.0,91567.0,0.04485]
[1763469573246,0.04436,91563.0,91562.0,0.07432954]
[1763469573448,0.04436,91563.0,91562.0,0.02947954]
[1763469573750,0.04436,91563.0,91562.0,0.04485]
[1763469574053,0.04436,91561.0,91560.0,0.00236189]
[1763469575551,0.04436,91561.0,91560.0,0.02393189]
[1763469575752,0.04436,91561.0,91560.0,0.04721189]
[1763469575954,0.04436,91561.0,91560.0,0.02393189]
[1763469576152,0.04436,91561.0,91560.0,0.04721189]
[1763469576353,0.04436,91561.0,91560.0,0.04821189]
[1763469576861,0.04436,91561.0,91560.0,0.04721189]
[1763469577556,0.04436,91561.0,91560.0,0.04821189]
[1763469579158,0.04436,91561.0,91560.0,0.04721189]
[1763469579855,0.04436,91561.0,91560.0,0.00336189]
[1763469580253,0.04436,91561.0,91560.0,0.00236189]
[1763469580453,0.04436,91561.0,91560.0,0.00336189]
[1763469581857,0.04436,91561.0,91560.0,0.00236189]
[1763469582560,0.02144,91561.0,91560.0,0.04721189]
[1763469582759,0.04436,91561.0,91560.0,0.04721189]
[1763469585251,0.04436,91561.0,91560.0,0.00236189]
[1763469586258,0.04436,91550.0,91548.0,0.02947954]
[1763469586457,0.04436,91548.0,91547.0,0.07432954]
[1763469586651,0.04436,91548.0,91547.0,0.04485]
[1763469586853,0.05823,91560.0,91559.0,0.02157]
[1763469587059,0.02292,91550.0,91549.0,0.04485]
[1763469587259,0.01387,91552.0,91550.0,0.00219803]
[1763469587455,0.04436,91551.0,91550.0,0.00219803]
[1763469588065,0.04436,91551.0,91550.0,0.02376803]
[1763469588757,0.04436,91551.0,91550.0,0.04704803]
[1763469589158,0.04436,91551.0,91550.0,0.04804803]
[1763469592860,0.04452386,91559.0,91558.0,0.04485]
[1763469596864,0.02160386,91559.0,91558.0,0.04485]
[1763469597965,0.00016386,91559.0,91558.0,0.07429501]
[1763469598469,0.00016386,91559.0,91558.0,0.04485]
[1763469599667,0.05316314,91576.0,91558.0,0.04485]
[1763469599668,0.06221314,91576.0,91575.0,0.04442]
[1763469599875,0.04523,91576.0,91575.0,0.04442]
[1763469600761,0.01293,91588.0,91582.0,0.04442]
[1763469600762,0.04523,91583.0,91582.0,0.04442]
[1763469601665,0.10407296,91583.0,91582.0,0.04442]
[1763469602069,0.04523,91581.0,91580.0,0.02528803]
[1763469602268,0.04523,91581.0,91580.0,0.04661803]
[1763469602472,0.04523,91581.0,91580.0,0.00219803]
[1763469602666,0.04523,91569.0,91568.0,0.02309]
[1763469602868,0.04523,91569.0,91568.0,0.30422]
[1763469603568,0.04523,91578.0,91577.0,0.04442]
[1763469606569,0.02292,91578.0,91577.0,0.04442]
[1763469606772,0.04523,91584.0,91583.0,0.04442]
[1763469609378,0.00016386,91585.0,91584.0,0.04442]
[1763469609577,0.02308386,91585.0,91584.0,0.04442]
[1763469609984,0.00016386,91585.0,91584.0,0.04442]
[1763469611282,0.04539386,91585.0,91584.0,0.28661]
[1763469611486,0.04539386,91585.0,91584.0,0.30794]
[1763469613180,0.00016386,91585.0,91584.0,0.30794]
[1763469613689,0.04539386,91585.0,91584.0,0.30794]
[1763469613890,0.04539386,91585.0,91584.0,0.02309]
[1763469614188,0.05816,91581.0,91580.0,0.04661803]
[1763469614381,0.05816,91581.0,91580.0,0.31009803]
[1763469615385,0.04523,91581.0,91580.0,0.31009803]
[1763469615579,0.05816,91581.0,91580.0,0.31009803]
[1763469617092,0.02308386,91585.0,91584.0,0.04442]
[1763469617276,0.04539386,91585.0,91584.0,0.04442]
[1763469617690,0.00016386,91585.0,91584.0,0.04442]
[1763469623589,0.00016386,91585.0,91584.0,0.1537298]
[1763469623993,0.00016386,91585.0,91584.0,0.04442]
[1763469625383,0.00016386,91585.0,91584.0,0.1537297]
[1763469625585,0.02122,91604.0,91603.0,0.04463]
[1763469625893,0.04223,91604.0,91603.0,0.30807]
[1763469630894,0.0463,91601.0,91600.0,0.00219803]
[1763469631093,0.05928,91595.0,91594.0,0.00016377]
[1763469631288,0.05928,91595.0,91594.0,0.19164377]
[1763469631591,0.05928,91595.0,91594.0,0.21466377]
[1763469631790,0.00027291,91606.0,91605.0,0.04526]
[1763469632302,0.02333291,91606.0,91605.0,0.04526]
[1763469632499,0.04657291,91606.0,91605.0,0.04526]
[1763469632887,0.04657291,91606.0,91605.0,0.30866]
[1763469633398,0.00027291,91606.0,91605.0,0.30866]
[1763469633587,0.02306,91627.0,91624.0,0.0127]
[1763469633783,0.02306,91627.0,91626.0,0.04526]
[1763469633784,0.0463,91627.0,91626.0,0.04526]
[1763469637398,0.0463,91618.0,91617.0,0.04526]
[1763469637594,0.05928,91624.0,91623.0,0.04526]
[1763469640693,0.0463,91621.0,91620.0,0.00219803]
[1763469640894,0.0463,91621.0,91620.0,0.15447803]
[1763469641195,0.0463,91621.0,91620.0,0.17749803]
[1763469641404,0.0463,91621.0,91620.0,0.19973803]
[1763469642488,0.0463,91621.0,91620.0,0.15447803]
[1763469642693,0.0463,91621.0,91620.0,0.00219803]
[1763469643197,0.0463,91617.0,91616.0,0.00016377]
[1763469643494,0.0463,91617.0,91616.0,0.04542377]
[1763469644598,0.03928058,91629.0,91620.0,0.00219803]
[1763469644900,0.0463,91628.0,91627.0,0.04526]
[1763469646403,0.08558058,91634.0,91633.0,0.04526]
[1763469646599,0.0463,91634.0,91633.0,0.04526]
[1763469646794,0.0463,91631.0,91630.0,0.02521803]
[1763469646994,0.0463,91631.0,91630.0,0.04745803]
[1763469648001,0.08558058,91639.0,91638.0,0.04526]
[1763469648196,0.08558058,91640.0,91639.0,0.04526]
[1763469648397,0.05928,91640.0,91639.0,0.04526]
[1763469649899,0.03928058,91643.0,91624.0,0.0127]
[1763469649900,0.06234058,91643.0,91642.0,0.04526]
[1763469650096,0.0463,91643.0,91642.0,0.04526]
[1763469651205,0.0463,91641.0,91640.0,0.00219803]
[1763469651399,0.0463,91641.0,91640.0,0.02521803]
[1763469651705,0.08558058,91641.0,91640.0,0.04745803]
[1763469653300,0.0463,91641.0,91640.0,0.04745803]
[1763469653503,0.08558058,91641.0,91640.0,0.04745803]
[1763469653892,0.03928058,91641.0,91640.0,0.06015803]
[1763469654098,0.03928058,91642.0,91640.0,0.06015803]
[1763469654411,0.03928058,91645.0,91640.0,0.01489803]
[1763469654702,0.03928058,91645.0,91644.0,0.04526]
[1763469655005,0.02306,91645.0,91644.0,0.04526]
[1763469655303,0.06234058,91645.0,91644.0,0.04526]
[1763469655505,0.08558058,91645.0,91644.0,0.04526]
[1763469657204,0.06053058,91645.0,91644.0,0.04526]
[1763469657501,0.04397,91645.0,91644.0,0.04526]
[1763469657905,0.00027279,91646.0,91645.0,0.04455]
[1763469658093,0.04424279,91646.0,91645.0,0.04455]
[1763469658894,0.00027279,91646.0,91645.0,0.04455]
[1763469659106,0.04424279,91646.0,91645.0,0.04455]
[1763469659802,0.00027279,91646.0,91645.0,0.04455]
[1763469660196,0.03948216,91646.0,91645.0,0.04455]
[1763469660393,0.00027279,91646.0,91645.0,0.04455]
[1763469661601,0.01322,91664.0,91640.0,0.01489803]
[1763469661602,0.06045937,91663.0,91662.0,0.04455]
[1763469661810,0.04397,91663.0,91662.0,0.04455]
[1763469662107,0.04397,91661.0,91660.0,0.00219803]
[1763469662302,0.03920937,91663.0,91653.0,0.00016368]
[1763469662303,0.04397,91654.0,91653.0,0.00016368]
[1763469663198,0.04397,91654.0,91653.0,0.04471368]
[1763469663399,0.03920937,91663.0,91662.0,0.04455]
[1763469663603,0.03920937,91666.0,91664.0,0.05725]
[1763469663803,0.04397,91666.0,91665.0,0.04455]
[1763469664001,0.08317937,91666.0,91665.0,0.04455]
[1763469664400,0.04397,91666.0,91665.0,0.04455]
[1763469666708,0.03920937,91669.0,91668.0,0.04455]
[1763469666908,0.01084462,91685.0,91684.0,0.04455]
[1763469667209,0.01322,91704.0,91684.0,0.04455]
[1763469667210,0.05875003,91710.0,91704.0,0.0127]
[1763469667394,0.09762623,91746.0,91745.0,0.04455]
[1763469667600,0.01322,91760.0,91748.0,0.04455]
[1763469667796,0.05719,91760.0,91759.0,0.02238]
[1763469668502,0.0547,91797.0,91756.0,0.26404]
[1763469668503,0.10234239,91814.0,91760.0,0.00219803]
[1763469668704,0.19525247,91844.0,91810.0,0.00999999]
[1763469668705,0.01083695,91822.0,91810.0,0.00999999]
[1763469668905,0.04397,91787.0,91778.0,0.00016348]
[1763469669103,0.01322,91784.0,91780.0,0.00219803]
[1763469669304,0.04397,91779.0,91778.0,0.00016348]
[1763469669701,0.01322,91795.0,91780.0,0.00219803]
[1763469669903,0.02125,91781.0,91780.0,0.00219803]
[1763469670105,0.04397,91791.0,91780.0,0.01219802]
[1763469670406,0.01322,91806.0,91800.0,0.00999999]
[1763469670604,0.01322,91806.0,91800.0,0.01219802]
[1763469670803,0.01322,91830.0,91810.0,0.00999999]
[1763469670997,0.01322,91830.0,91820.0,0.1434219]
[1763469671195,0.01322,91856.0,91820.0,0.1434219]
[1763469671415,0.04397,91841.0,91840.0,0.00999999]
[1763469671704,0.01322,91856.0,91831.0,0.00016336]
[1763469671900,0.01322,91856.0,91840.0,0.01219802]
[1763469672102,0.01322,91872.0,91860.0,0.00999999]
[1763469672394,0.01322,91872.0,91860.0,0.1434219]
[1763469673206,0.04397,91858.0,91857.0,0.00016336]
[1763469673506,0.04397,91858.0,91830.0,0.13122388]
[1763469673703,0.05719,91851.0,91840.0,0.01219802]
[1763469673898,0.05719,91851.0,91840.0,0.13342191]
[1763469674210,0.01322,91851.0,91840.0,0.1434219]
[1763469674907,0.01322,91851.0,91840.0,0.01219802]
[1763469675308,0.00016171,91855.0,91840.0,0.23111997]
[1763469675507,0.00016171,91855.0,91850.0,0.00999999]
[1763469675910,0.01322,91851.0,91840.0,0.00219803]
[1763469676112,0.01322,91851.0,91840.0,0.01219802]
[1763469676498,0.01322,91851.0,91840.0,0.00219803]